bitfinex-derivatives/quotes_ETHF0:USTF0_20250824
["timestamp","ask_amount","ask_price","bid_price","bid_amount"]
[1755999775580,4.2276481,4797.0,4796.9,1.74147]
[1755999777782,4.2276481,4797.0,4796.9,1.39787]
[1755999778183,4.2276481,4797.0,4796.9,1.74147]
[1755999778684,4.2444481,4797.0,4796.9,0.458]
[1755999779278,4.2276481,4797.0,4796.9,0.7629]
[1755999779584,4.2276481,4797.0,4796.9,1.3244]
[1755999779978,4.2276481,4797.0,4796.9,0.9808]
[1755999780172,4.2276481,4797.0,4796.9,0.7629]
[1755999780374,4.2444481,4797.0,4796.9,0.2301]
[1755999780581,4.2276481,4797.0,4796.9,0.458]
[1755999780774,4.2276481,4797.0,4796.9,1.1065]
[1755999781986,4.2276481,4797.0,4796.9,0.7629]
[1755999782185,4.2444481,4797.0,4796.9,0.2301]
[1755999782584,0.2613,4796.7,4796.6,0.6472]
[1755999782887,0.4976,4796.3,4796.2,0.2301]
[1755999783090,0.5245,4796.3,4796.2,0.73175049]
[1755999783480,0.5245,4796.3,4796.2,0.50385049]
[1755999783681,4.24512651,4796.3,4796.2,0.2301]
[1755999783991,4.22832651,4796.3,4796.2,1.3391]
[1755999785290,4.22832651,4796.3,4796.2,1.0044]
[1755999785494,4.24502651,4796.3,4796.2,0.2301]
[1755999786390,4.22832651,4796.3,4796.2,0.4683]
[1755999786692,4.22832651,4796.3,4796.2,1.3327]
[1755999788687,0.49602651,4796.3,4796.2,1.3327]
[1755999789592,1.02222651,4796.3,4796.2,0.998]
[1755999790586,1.03892651,4796.3,4796.2,0.2301]
[1755999790792,1.02222651,4796.3,4796.2,0.4683]
[1755999790990,1.03892651,4796.3,4796.2,0.4683]
[1755999791292,1.03892651,4796.3,4796.2,0.2301]
[1755999792189,1.02222651,4796.3,4796.2,0.4683]
[1755999792892,0.75912651,4796.3,4796.2,1.3327]
[1755999793087,0.49602651,4796.3,4796.2,1.3327]
[1755999794987,1.02222651,4796.3,4796.2,1.3327]
[1755999795292,1.02222651,4796.3,4796.2,0.2301]
[1755999795293,1.03892651,4796.3,4796.2,0.2301]
[1755999796789,1.03892651,4796.3,4796.2,0.4683]
[1755999797394,1.02222651,4796.3,4796.2,0.998]
[1755999797592,1.02222651,4796.3,4796.2,1.3327]
[1755999797895,1.02222651,4796.3,4796.2,0.998]
[1755999798887,1.02222651,4796.3,4796.2,1.3327]
[1755999799090,1.02222651,4796.3,4796.2,0.998]
[1755999799294,1.02222651,4796.3,4796.2,0.7646]
[1755999800091,1.03892651,4796.3,4796.2,0.2301]
[1755999800793,0.68029,4795.6,4795.2,0.2382]
[1755999800990,0.5262,4795.4,4795.3,1.51981]
[1755999801491,0.5262,4795.4,4795.3,1.75391]
[1755999801885,0.5262,4795.4,4795.3,1.3367]
[1755999802092,1.02269916,4795.4,4795.3,1.002]
[1755999802784,1.02269916,4795.4,4795.3,0.6225]
[1755999803290,1.03939916,4795.4,4795.3,0.2341]
[1755999804193,0.5262,4794.9,4794.8,0.65545]
[1755999804392,0.5262,4794.9,4794.8,1.51985]
[1755999804690,1.45603856,4794.9,4794.8,0.2341]
[1755999804884,0.5262,4794.2,4794.1,1.3367]
[1755999805996,0.5262,4794.2,4794.1,1.002]
[1755999806293,0.5262,4794.2,4794.1,0.7686]
[1755999807887,0.5429,4794.2,4794.1,0.2341]
[1755999808091,0.2631,4793.9,4793.8,0.4723]
[1755999808392,0.94353,4793.9,4793.8,0.4723]
[1755999808592,0.94353,4793.9,4793.8,0.7686]
[1755999808796,0.94353,4793.9,4793.8,1.3367]
[1755999808994,0.5262,4793.9,4793.8,1.3367]
[1755999809691,0.5262,4793.9,4793.8,1.002]
[1755999809888,0.5262,4793.9,4793.8,0.7686]
[1755999810092,0.5262,4793.9,4793.8,1.002]
[1755999810293,0.5262,4793.9,4793.8,1.3367]
[1755999812202,0.5262,4793.9,4793.8,0.7686]
[1755999812401,0.5262,4793.9,4793.8,1.3367]
[1755999813695,0.5262,4793.9,4793.8,0.4723]
[1755999813899,0.2635,4794.1,4794.0,0.41732]
[1755999814104,0.41729,4794.4,4794.3,1.333]
[1755999815305,0.89769,4794.4,4794.3,1.333]
[1755999815603,0.92489,4794.4,4794.3,1.333]
[1755999815992,0.2236,4796.7,4795.1,0.0208]
[1755999816195,0.5171,4797.3,4796.4,0.0208]
[1755999816502,1.107,4797.3,4797.2,3.2078]
[1755999816702,1.107,4797.3,4797.2,3.62484]
[1755999816899,1.3306,4797.3,4797.2,3.62484]
[1755999818395,1.3306,4797.3,4797.2,3.2078]
[1755999821704,0.2236,4799.3,4798.3,0.1494]
[1755999821908,0.7407,4799.3,4799.2,0.726]
[1755999822102,0.7407,4799.3,4799.2,0.9002]
[1755999823701,1.1016,4799.3,4799.2,0.9002]
[1755999824006,1.3306,4799.3,4799.2,0.9002]
[1755999824200,0.9697,4799.3,4799.2,0.9002]
[1755999824400,1.3306,4799.3,4799.2,0.9002]
[1755999825398,1.3306,4798.8,4798.7,3.7202]
[1755999825598,1.3306,4798.8,4798.7,3.7844]
[1755999825803,1.3306,4798.8,4798.7,3.9338]
[1755999826003,1.3306,4798.8,4798.7,4.108]
[1755999826506,0.7528,4798.8,4798.7,4.108]
[1755999826706,0.9697,4798.8,4798.7,4.108]
[1755999827005,1.3306,4798.8,4798.7,4.108]
[1755999827701,1.7475,4798.8,4798.7,3.9338]
[1755999827902,1.3306,4798.8,4798.7,3.9338]
[1755999828300,0.3701,4798.8,4798.7,4.108]
[1755999828808,0.5991,4798.8,4798.7,4.108]
[1755999829309,0.3701,4798.8,4798.7,4.108]
[1755999830901,1.3306,4798.8,4798.7,0.2384]
[1755999831102,0.4169,4798.9,4798.0,3.2078]
[1755999831103,0.63386,4798.2,4798.1,0.2384]
[1755999831303,0.93406,4798.2,4798.0,3.2078]
[1755999831507,1.3306,4798.1,4798.0,3.7844]
[1755999831708,1.3306,4798.1,4798.0,4.108]
[1755999832403,1.3306,4798.1,4798.0,3.7844]
[1755999833200,1.3306,4798.1,4798.0,3.9338]
[1755999833403,1.3306,4798.1,4798.0,4.108]
[1755999836014,0.9697,4798.1,4798.0,4.108]
[1755999836815,0.2236,4798.1,4798.0,4.108]
[1755999837206,0.5634,4798.9,4798.6,0.41692]
[1755999837512,0.1465,4798.9,4798.8,0.9002]
[1755999837915,0.3701,4798.9,4798.8,0.9002]
[1755999838808,0.3701,4798.9,4798.8,4.108]
[1755999839613,0.7528,4798.9,4798.8,4.108]
[1755999840515,0.9697,4798.9,4798.8,4.108]
[1755999840717,1.3306,4798.9,4798.8,4.108]
[1755999841016,1.3306,4798.9,4798.8,0.9002]
[1755999841412,0.1465,4798.3,4798.2,3.7698]
[1755999841617,1.3306,4798.3,4798.2,0.562]
[1755999841806,1.3306,4798.3,4798.2,0.3878]
[1755999842010,1.3306,4798.3,4798.2,0.726]
[1755999842310,0.5171,4798.0,4797.9,0.562]
[1755999842511,0.9697,4798.0,4797.9,0.9002]
[1755999842711,0.7528,4798.0,4797.9,0.9002]
[1755999842906,1.3306,4798.0,4797.9,0.9002]
[1755999843309,0.78038,4797.9,4797.7,3.525]
[1755999843514,1.29498,4797.9,4797.8,0.002]
[1755999843815,1.29498,4797.9,4797.7,3.108]
[1755999844116,0.41698,4797.9,4797.7,3.525]
[1755999844316,0.2259,4798.1,4798.0,0.41697]
[1755999844616,0.445,4798.1,4798.0,0.7017791]
[1755999845214,0.2259,4798.4,4798.3,0.41694]
[1755999845413,0.2259,4798.4,4798.3,3.9095491]
[1755999845614,1.02199383,4798.4,4798.3,0.7017491]
[1755999845812,1.47589383,4798.4,4798.3,0.7017491]
[1755999846208,1.47589383,4798.4,4798.3,0.2848091]
[1755999846410,1.81629383,4798.4,4798.3,0.2848091]
[1755999846723,1.74214,4797.3,4797.2,3.7276]
[1755999847019,2.23333383,4797.3,4797.2,3.2078]
[1755999847416,0.41707,4796.9,4796.8,0.285]
[1755999847617,0.6138,4796.8,4796.7,3.2078]
[1755999847817,1.81723388,4796.8,4796.7,3.2078]
[1755999848218,1.3251,4796.8,4796.7,3.2078]
[1755999848413,1.81720597,4796.8,4796.7,3.2078]
[1755999848817,0.93710597,4796.8,4796.7,3.7276]
[1755999849014,0.2259,4796.8,4796.7,3.7276]
[1755999849622,0.445,4796.8,4796.7,3.7276]
[1755999852222,0.86208,4796.8,4796.7,3.7276]
[1755999852423,0.7499,4796.8,4796.7,3.7276]
[1755999852620,1.74218,4796.8,4796.7,3.7276]
[1755999852822,0.9847,4796.8,4796.7,3.7276]
[1755999853926,1.40178,4796.8,4796.7,3.7276]
[1755999854127,0.9847,4796.8,4796.7,3.7276]
[1755999855223,0.7499,4796.8,4796.7,3.7276]
[1755999857629,0.41712,4796.3,4796.2,3.2078]
[1755999857821,1.74222,4796.3,4796.2,0.5198]
[1755999858021,2.23407025,4796.3,4796.2,0.5198]
[1755999859428,2.23397622,4796.3,4796.2,0.5198]
[1755999860034,2.23397622,4796.3,4796.2,0.2348]
[1755999860230,1.74222,4796.3,4796.2,0.2348]
[1755999860438,2.23396837,4796.3,4796.2,0.2348]
[1755999861329,1.3251,4796.3,4796.2,0.2348]
[1755999861532,1.81678514,4796.3,4796.2,0.5198]
[1755999862332,0.5397,4795.8,4795.7,0.5198]
[1755999862533,1.3251,4795.8,4795.7,0.5198]
[1755999863033,1.3251,4795.8,4795.7,0.93697]
[1755999863640,1.3251,4795.8,4795.7,0.5198]
[1755999863939,0.7854,4795.8,4795.7,0.41717]
[1755999864140,1.3251,4795.8,4795.7,0.41717]
[1755999865037,1.3251,4795.8,4795.7,0.93697]
[1755999865235,1.3251,4795.7,4795.6,3.2078]
[1755999866133,1.3251,4795.7,4795.6,3.4928]
[1755999866341,0.5397,4795.7,4794.9,3.4928]
[1755999866537,1.3251,4795.0,4794.9,3.7276]
[1755999871442,1.3251,4795.0,4794.9,3.2078]
[1755999872247,1.3251,4795.0,4794.9,3.4938]
[1755999872449,1.3251,4795.0,4794.9,0.5208]
[1755999874150,1.3089,4794.6,4794.5,0.63597]
[1755999874641,1.3089,4794.6,4794.5,0.92237]
[1755999876048,1.3089,4794.6,4794.5,0.5051]
[1755999876849,0.94548,4794.5,4794.4,3.2078]
[1755999877049,1.72618,4794.5,4794.4,3.2078]
[1755999877249,1.72618,4794.5,4794.4,3.4942]
[1755999877645,1.72618,4794.5,4794.4,3.7129]
[1755999879847,1.72618,4794.5,4794.4,3.2078]
[1755999881051,1.04313,4794.9,4794.0,0.2864]
[1755999881052,1.72621,4794.1,4794.0,0.5051]
[1755999882154,1.3089,4794.1,4794.0,0.5051]
[1755999886257,1.3089,4794.1,4794.0,0.2864]
[1755999886650,1.3089,4794.1,4794.0,0.5051]
[1755999887958,1.72622,4794.0,4793.9,3.2078]
[1755999889753,1.72622,4794.0,4793.9,3.7129]
[1755999897766,0.86252,4794.0,4793.9,3.7129]
[1755999897967,1.16562,4794.0,4793.9,3.7129]
[1755999898362,1.50112,4794.0,4793.9,3.7129]
[1755999898663,1.72622,4794.0,4793.9,3.7129]
[1755999899465,1.72622,4794.0,4793.9,3.90864907]
[1755999900462,1.72622,4794.0,4793.9,3.7129]
[1755999900660,1.72622,4794.0,4793.9,3.90864907]
[1755999900860,0.6376,4794.3,4794.2,0.2187]
[1755999901060,0.8625,4794.3,4794.2,0.5051]
[1755999901257,1.0138,4794.3,4794.2,0.5051]
[1755999901463,1.7262,4794.3,4794.2,0.5051]
[1755999903264,0.41728,4794.5,4794.3,0.41729]
[1755999903459,0.2203,4794.5,4794.4,3.7129]
[1755999903758,0.2203,4794.5,4794.4,3.90863249]
[1755999903966,0.4421,4794.5,4794.4,3.90863249]
[1755999904163,1.316,4794.5,4794.4,3.90863249]
[1755999904364,1.316,4794.5,4794.4,0.70873249]
[1755999904564,1.81192004,4794.5,4794.4,0.513]
[1755999906170,0.5292,4794.0,4793.9,0.5131]
[1755999906366,1.80352004,4794.0,4793.9,0.70884684]
[1755999906867,1.80352004,4794.0,4793.9,0.19574684]
[1755999907370,1.80352004,4794.0,4793.8,3.2078]
[1755999907371,1.72493,4793.9,4793.8,3.2078]
[1755999907572,1.72493,4793.9,4793.8,3.40355918]
[1755999907573,2.22085004,4793.9,4793.8,3.40355918]
[1755999907872,1.80352004,4793.9,4793.8,3.40355918]
[1755999908073,1.80352004,4793.9,4793.8,3.91665918]
[1755999909168,1.80352004,4793.9,4793.8,3.7209]
[1755999909368,1.80352004,4793.9,4793.8,3.91665918]
[1755999909977,1.80352004,4793.9,4793.8,3.40355918]
[1755999911576,1.80352004,4793.9,4793.8,3.69005918]
[1755999913069,1.80352004,4793.9,4793.8,3.91665918]
[1755999913581,1.80352004,4793.9,4793.8,3.40355918]
[1755999913773,0.94657,4793.5,4793.4,0.5131]
[1755999913973,1.02512004,4793.5,4793.4,0.70886143]
[1755999914370,1.80352004,4793.5,4793.4,0.70886143]
[1755999915177,1.3076,4793.5,4793.4,0.70886143]
[1755999916275,0.744,4793.5,4793.4,0.70886143]
[1755999916477,1.3076,4793.5,4793.4,0.70886143]
[1755999916878,0.2172,4793.5,4793.4,0.70886143]
[1755999917478,0.2172,4793.5,4793.4,0.97582075]
[1755999917680,0.2218,4793.8,4793.7,0.2266]
[1755999917876,0.2172,4793.8,4793.7,1.3931554]
[1755999918671,0.94646,4794.7,4794.6,0.64387]
[1755999918877,1.7814397,4794.7,4794.6,0.78003098]
[1755999919272,2.2204397,4794.7,4794.6,0.78003098]
[1755999919482,2.2204397,4794.7,4794.6,0.5131]
[1755999920481,0.41732,4794.0,4793.9,0.2865]
[1755999920677,1.72495,4793.7,4793.6,3.7209]
[1755999920880,1.72495,4793.7,4793.6,3.69006464]
[1755999921076,1.72495,4793.7,4793.6,3.91666464]
[1755999921477,1.72495,4793.7,4793.6,0.70886464]
[1755999921781,1.72495,4793.7,4793.6,0.19576464]
[1755999921978,0.146,4793.2,4793.1,3.4344]
[1755999922177,0.744,4793.2,4793.1,4.04757503]
[1755999922477,1.0858,4793.6,4793.5,0.41736]
[1755999922781,1.3076,4793.6,4793.5,1.12623503]
[1755999923283,1.3076,4793.6,4793.5,0.93046]
[1755999924679,1.3076,4793.6,4793.5,0.5131]
[1755999924881,0.5292,4793.2,4793.1,3.85179]
[1755999925181,1.3076,4793.2,4793.1,3.63017681]
[1755999925685,1.3076,4793.2,4793.1,3.91667681]
[1755999925882,0.744,4793.2,4793.1,3.91667681]
[1755999926881,1.0026,4793.2,4793.1,3.91667681]
[1755999927089,1.3076,4793.2,4793.1,3.91667681]
[1755999928179,1.3076,4793.2,4793.1,3.63017681]
[1755999928382,1.3076,4793.2,4793.1,3.2078]
[1755999929982,0.5292,4792.7,4792.5,3.2078]
[1755999930185,0.5292,4791.8,4791.7,0.92952]
[1755999930382,0.41744,4792.7,4792.1,0.512]
[1755999930693,3.2078,4793.4,4793.0,0.2266]
[1755999930885,19.083,4793.3,4793.0,0.512]
[1755999931088,30.495,4793.1,4793.0,0.512]
[1755999931488,30.8344,4793.1,4793.0,0.512]
[1755999932489,0.5292,4792.8,4792.7,0.92943]
[1755999932685,1.3076,4792.8,4792.7,0.92943]
[1755999932878,1.3076,4792.8,4791.5,1.04384]
[1755999932879,0.9244,4792.6,4792.4,0.41745]
[1755999933185,1.3076,4792.2,4792.1,3.4932]
[1755999933488,1.3076,4792.2,4792.1,3.7198]
[1755999933789,0.2172,4792.2,4792.1,3.7198]
[1755999933984,0.4555,4792.6,4792.5,0.2403]
[1755999934188,0.4555,4792.6,4792.5,0.5268]
[1755999934391,0.9715,4792.6,4792.5,0.94425]
[1755999934584,1.3188,4792.6,4792.5,0.94425]
[1755999936787,1.3188,4792.6,4792.5,0.5268]
[1755999937185,0.516,4792.2,4792.1,3.86558]
[1755999937482,1.3188,4792.2,4792.1,3.86558]
[1755999937886,1.3188,4792.2,4792.1,4.15208]
[1755999938091,1.3188,4792.2,4792.1,3.7346]
[1755999938292,1.3188,4792.2,4792.1,3.4481]
[1755999938590,20.4448,4792.2,4791.6,0.2865]
[1755999938895,1.3188,4791.7,4791.6,0.2865]
[1755999939190,1.3188,4791.7,4791.6,0.5268]
[1755999940299,0.93353,4791.7,4791.5,3.62533]
[1755999940586,1.3188,4791.6,4791.5,3.2078]
[1755999940793,1.3188,4791.6,4791.5,3.4943]
[1755999940989,1.3188,4791.6,4791.5,3.7346]
[1755999941585,1.3188,4791.6,4791.5,3.2078]
[1755999942787,1.3188,4791.0,4790.9,3.2078]
[1755999942993,1.3188,4791.0,4790.9,3.7346]
[1755999943593,0.2248,4791.5,4791.4,0.94434]
[1755999943799,0.2248,4791.5,4791.4,4.15214]
[1755999943990,0.4555,4791.5,4791.4,4.15214]
[1755999944687,19.642,4792.2,4792.1,0.65779]
[1755999944991,19.642,4792.2,4792.1,4.15209]
[1755999945298,20.0975,4792.2,4792.1,4.15209]
[1755999945989,20.4448,4792.2,4792.1,4.15209]
[1755999947697,20.4448,4792.2,4792.1,3.4481]
[1755999947898,20.4448,4792.2,4792.1,3.2078]
[1755999948396,20.4448,4792.2,4792.1,3.4943]
[1755999949693,20.4448,4792.2,4792.1,3.2078]
[1755999953297,20.4618,4792.2,4792.1,3.2078]
[1755999960303,1.3188,4792.2,4792.1,3.7346]
[1755999960504,19.3428,4792.2,4792.1,3.93042243]
[1755999960911,0.2248,4792.2,4792.1,4.20703638]
[1755999961303,0.4555,4792.2,4792.1,4.20707313]
[1755999961906,0.4555,4792.2,4792.1,3.93042243]
[1755999962106,0.6001,4792.2,4792.1,3.93042243]
[1755999963006,0.4555,4792.2,4792.1,3.93042243]
[1755999964307,0.7491,4792.2,4792.1,3.93042243]
[1755999965112,0.9715,4792.2,4792.1,3.93040415]
[1755999965505,1.3111,4792.2,4792.1,3.93040415]
[1755999967012,20.4201,4792.2,4792.1,3.40360415]
[1755999967211,20.4201,4792.2,4792.1,2.9667]
[1755999967516,20.4201,4792.2,4792.1,2.7256]
[1755999970610,20.4201,4792.2,4792.1,3.392]
[1755999970811,20.4201,4792.2,4792.1,3.6131]
[1755999970812,1.3111,4792.2,4792.1,3.6131]
[1755999971009,19.8408,4792.2,4792.1,3.6131]
[1755999971205,20.4047,4792.2,4792.1,3.6131]
[1755999971707,20.4047,4792.2,4792.1,2.7256]
[1755999971907,20.4047,4792.2,4792.1,3.65508246]
[1755999973112,20.4127,4792.2,4792.1,4.07201285]
[1755999973712,20.4127,4792.2,4792.1,2.92143039]
[1755999973908,20.4127,4792.2,4792.1,3.18464354]
[1755999974105,20.90812859,4792.2,4792.1,2.98881315]
[1755999975113,20.4127,4792.2,4792.1,2.98881315]
[1755999975318,20.4127,4792.2,4792.1,2.74801315]
[1755999975523,0.94522,4791.6,4791.5,3.2078]
[1755999975721,0.94522,4791.6,4791.5,3.40364004]
[1755999975722,20.84872,4791.6,4791.5,3.40364004]
[1755999977219,20.84872,4791.6,4791.5,3.2078]
[1755999977414,20.4312,4791.6,4791.5,3.2078]
[1755999978321,20.4362,4791.6,4791.5,4.3059]
[1755999979211,20.4362,4791.6,4791.5,4.0711]
[1755999979416,20.4362,4791.6,4791.5,3.575]
[1755999979615,20.4362,4791.6,4791.5,3.2078]
[1755999981821,20.9314781,4791.6,4791.5,3.2078]
[1755999982318,0.41759,4790.9,4790.6,0.76]
[1755999982524,1.3262,4790.7,4790.6,1.5157]
[1755999982723,1.3262,4790.7,4790.6,1.71157178]
[1755999983026,1.3262,4790.7,4790.6,1.29397178]
[1755999983324,1.3262,4790.7,4790.6,1.05917178]
[1755999983518,1.3262,4790.7,4790.6,0.19587178]
[1755999984823,1.74381,4790.6,4790.5,3.2078]
[1755999985017,0.94534,4790.3,4790.2,0.3424]
[1755999985319,20.86384,4790.3,4790.2,0.1958965]
[1755999985727,1.3262,4790.0,4789.9,3.7287]
[1755999986025,20.4442,4790.0,4789.9,4.50180415]
[1755999986325,20.4442,4790.0,4789.9,4.3059]
[1755999986522,20.4442,4790.0,4789.9,4.5256]
[1755999987415,20.4442,4790.0,4789.9,4.3059]
[1755999987621,20.4442,4790.0,4789.9,4.56784623]
[1755999988326,20.4442,4790.0,4789.9,3.69084623]
[1755999989025,20.4442,4790.0,4789.9,3.46974623]
[1755999989429,20.4442,4790.0,4789.9,4.03324623]
[1755999989925,20.4442,4790.0,4789.9,3.46974623]
[1755999991816,20.4442,4790.0,4789.9,3.2078]
[1755999992522,20.4412,4790.0,4789.9,3.7287]
[1755999992727,20.4412,4790.0,4789.9,4.3059]
[1755999993122,20.4412,4790.0,4789.9,3.7287]
[1755999993523,20.4412,4790.0,4789.9,3.2078]
[1755999997228,1.3535,4789.5,4789.4,3.2078]
[1755999997424,20.8852,4789.5,4789.4,3.2078]
[1755999999230,20.8852,4789.5,4789.4,4.3284]
[1755999999719,20.8852,4789.5,4789.4,4.58996475]
[1756000000530,20.8852,4789.5,4789.4,3.46936475]
[1756000000827,20.8852,4789.5,4789.4,3.2078]
[1756000001734,1.3535,4789.0,4788.9,3.2078]
[1756000001928,20.4595,4789.0,4788.9,3.46938469]
[1756000002327,20.87725,4789.0,4788.9,3.2078]
[1756000002532,20.4735,4789.0,4788.9,4.3284]
[1756000002734,20.4735,4789.0,4788.9,4.0874]
[1756000002933,20.4735,4789.0,4788.9,3.9405]
[1756000004234,20.4735,4789.0,4788.9,3.5922]
[1756000005134,20.4735,4789.0,4788.9,3.85387749]
[1756000005743,1.3535,4789.0,4788.9,4.59007749]
[1756000005928,20.4765,4789.0,4788.9,4.59007749]
[1756000006830,20.4765,4789.0,4788.9,4.34909514]
[1756000007233,20.4765,4789.0,4788.9,3.5922]
[1756000007433,20.4765,4789.0,4788.9,3.46952099]
[1756000008737,20.4765,4789.0,4788.9,3.2078]
[1756000009129,20.4765,4789.0,4788.9,3.46961462]
[1756000012140,20.4765,4789.0,4788.9,3.2078]
[1756000012334,0.4178,4788.4,4788.3,3.2078]
[1756000012538,20.8883,4788.4,4788.3,3.46843742]
[1756000012839,20.4705,4788.4,4788.3,3.46843742]
[1756000013035,20.4705,4788.4,4788.3,3.81673742]
[1756000013240,20.4705,4788.4,4788.3,4.58903742]
[1756000015041,20.4705,4788.4,4788.3,3.85123742]
[1756000015240,20.4705,4788.4,4788.3,3.70433742]
[1756000016134,20.4705,4788.4,4788.3,3.46843742]
[1756000016640,20.4705,4788.4,4788.3,3.46861042]
[1756000017235,0.5397,4787.9,4787.8,3.2078]
[1756000017439,20.88134,4787.9,4787.8,3.46862062]
[1756000017834,20.88134,4787.9,4787.8,0.26082062]
[1756000019034,20.4635,4787.9,4787.8,0.26082062]
[1756000019235,20.4635,4787.9,4787.8,0.84502062]
[1756000019534,20.4635,4787.9,4787.8,0.49672062]
[1756000019931,20.4635,4787.9,4787.8,0.26082062]
[1756000021441,1.7714,4787.2,4787.1,3.2078]
[1756000021742,20.8774,4787.2,4787.1,3.2078]
[1756000022243,1.94402878,4787.2,4787.1,3.2078]
[1756000022443,21.05402878,4787.2,4787.1,3.2078]
[1756000023345,0.5397,4786.7,4786.6,3.2078]
[1756000023545,20.87945,4786.7,4786.6,3.2078]
[1756000024945,20.4615,4786.7,4786.6,3.9201]
[1756000025138,20.4615,4786.7,4786.6,4.152]
[1756000025534,1.3407,4786.4,4786.3,1.73958]
[1756000025742,20.4477,4786.4,4786.3,1.3216]
[1756000026638,1.3407,4786.4,4786.3,1.3216]
[1756000026942,20.4647,4786.4,4786.3,1.3216]
[1756000027142,20.4647,4786.4,4786.3,0.6056]
[1756000027340,20.88268,4786.4,4786.3,1.3216]
[1756000027840,20.4647,4786.4,4786.3,1.3216]
[1756000029133,20.4647,4786.4,4786.3,0.9405]
[1756000029340,20.4647,4786.4,4786.1,3.5815]
[1756000029341,1.3407,4786.2,4786.1,3.5815]
[1756000029540,20.4607,4786.2,4786.1,3.2078]
[1756000030538,20.4607,4786.2,4786.1,3.5933]
[1756000030744,20.4607,4786.2,4786.1,4.5294]
[1756000031142,20.4607,4786.2,4786.1,1.5183]
[1756000031351,20.4607,4786.2,4785.0,0.9763]
[1756000031352,0.6901,4785.1,4785.0,0.9763]
[1756000031548,19.178,4785.2,4785.1,0.95279]
[1756000031741,0.6901,4785.5,4785.4,1.17286]
[1756000031946,19.8681,4785.5,4785.4,1.3216]
[1756000032652,0.5359,4785.9,4785.8,0.5347]
[1756000032846,19.8731,4785.9,4785.8,1.3216]
[1756000033149,20.29112,4785.9,4785.8,1.3216]
[1756000033344,20.29112,4785.9,4785.8,0.9763]
[1756000033551,19.723,4785.9,4785.8,1.3216]
[1756000034543,0.2341,4785.9,4785.8,1.3216]
[1756000034747,21.881426,4786.1,4786.0,1.3216]
[1756000034948,22.034126,4786.1,4786.0,1.3216]
[1756000035143,2.854126,4786.1,4786.0,1.3216]
[1756000035848,22.426326,4786.1,4786.0,0.9763]
[1756000036549,22.426326,4786.1,4786.0,1.3216]
[1756000037948,2.547226,4786.1,4786.0,1.3216]
[1756000040555,2.701426,4786.1,4786.0,1.3216]
[1756000042458,2.701426,4786.1,4786.0,1.51765517]
[1756000042661,2.701426,4786.1,4786.0,4.72545517]
[1756000042957,2.701426,4786.1,4786.0,4.74625517]
[1756000042958,2.547226,4786.1,4786.0,4.74625517]
[1756000043351,2.547226,4786.1,4786.0,4.72545517]
[1756000045064,1.340426,4786.1,4786.0,8.74625517]
[1756000045258,1.2612,4787.2,4787.1,1.73951]
[1756000046964,1.2612,4787.2,4787.1,1.93553096]
[1756000047164,1.1121,4787.2,4787.1,1.93553096]
[1756000047361,0.9594,4787.2,4787.1,1.93553096]
[1756000047564,0.3793,4787.2,4787.1,5.14333096]
[1756000047755,0.9594,4787.5,4787.4,0.95259]
[1756000047959,0.9594,4787.5,4787.4,1.93551096]
[1756000049561,3.506626,4787.5,4787.4,1.93551096]
[1756000051863,3.506626,4787.5,4787.4,1.93542903]
[1756000053370,3.506626,4787.5,4787.4,2.19898147]
[1756000055064,3.506626,4787.5,4787.4,2.1989148]
[1756000055269,3.506626,4787.5,4787.4,2.19874881]
[1756000056464,3.282726,4787.5,4787.4,2.19874881]
[1756000056765,2.547226,4787.5,4787.4,2.19874881]
[1756000057871,2.547226,4787.5,4787.4,6.19874881]
[1756000058061,2.104466,4787.5,4787.4,6.19874881]
[1756000058266,0.397,4788.5,4788.4,1.7606]
[1756000058462,0.397,4788.5,4788.4,5.23154995]
[1756000058771,0.9531,4788.5,4788.4,5.23154995]
[1756000059166,1.2622,4788.5,4788.4,5.23154995]
[1756000061173,1.1137,4788.5,4788.4,5.23154995]
[1756000061675,3.660926,4788.5,4788.4,5.23154995]
[1756000061868,3.809426,4788.5,4788.4,5.23154995]
[1756000063170,31.14009,4790.4,4788.4,4.83454995]
[1756000063171,0.5561,4789.0,4788.4,4.83454995]
[1756000063366,3.2078,4790.5,4789.0,1.04438]
[1756000063572,0.3749,4789.7,4789.6,3.8489]
[1756000063774,0.3749,4789.7,4789.6,4.11204995]
[1756000063972,0.7913,4789.7,4789.6,4.11204995]
[1756000064376,0.7913,4789.7,4789.6,4.35254995]
[1756000064575,0.707,4789.7,4789.6,4.65464995]
[1756000065277,0.707,4789.7,4789.6,4.88906747]
[1756000065481,0.707,4789.7,4789.6,5.23096747]
[1756000065775,0.707,4789.7,4789.6,5.23080695]
[1756000067281,0.707,4789.7,4789.6,4.9683]
[1756000068382,0.707,4789.7,4789.6,5.23071907]
[1756000068579,0.707,4789.7,4789.6,4.9683]
[1756000069182,0.707,4789.7,4789.6,4.5506]
[1756000069378,0.707,4789.7,4789.6,4.82871619]
[1756000070080,0.707,4789.7,4789.6,4.82872535]
[1756000070278,0.707,4789.7,4789.6,4.5506]
[1756000070580,0.707,4789.7,4789.6,4.82875953]
[1756000070973,0.98985,4790.2,4790.1,1.3428]
[1756000071378,1.12465,4790.2,4790.1,1.3428]
[1756000071576,0.707,4790.2,4790.1,1.3428]
[1756000073179,0.5722,4790.2,4790.1,1.3428]
[1756000073578,0.707,4790.2,4790.1,1.3428]
[1756000074684,0.5722,4790.2,4790.1,1.3428]
[1756000075384,19.3921,4790.4,4790.3,0.537]
[1756000075684,19.3921,4790.4,4790.3,1.3428]
[1756000075685,19.859,4790.4,4790.3,1.3428]